bitfinex/quotes_BTCUSD_20250602
["timestamp","ask_amount","ask_price","bid_price","bid_amount"]
[1748882750399,0.40649098,104200.0,104190.0,0.24634672]
[1748882750851,0.39689433,104200.0,104190.0,0.2559441]
[1748882751093,0.40649098,104200.0,104190.0,0.2559441]
[1748882751496,0.41608772,104200.0,104190.0,0.2559441]
[1748882751916,0.40649098,104200.0,104190.0,0.2559441]
[1748882753001,0.41480852,104200.0,104190.0,0.2559441]
[1748882753217,0.36810531,104200.0,104190.0,0.2559441]
[1748882753435,0.04602023,104200.0,104190.0,0.2723441]
[1748882753641,0.3905412,104210.0,104200.0,0.25222824]
[1748882753857,0.41095762,104210.0,104200.0,0.23692824]
[1748882754074,0.41927778,104210.0,104200.0,0.23692824]
[1748882754282,0.40008666,104210.0,104200.0,0.23692824]
[1748882754495,0.40136198,104210.0,104200.0,0.25222824]
[1748882754720,0.41095761,104210.0,104200.0,0.23692824]
[1748882755009,0.4306464,104210.0,104200.0,0.22172824]
[1748882755200,0.42105068,104210.0,104200.0,0.22172824]
[1748882755619,0.43896725,104210.0,104200.0,0.22272824]
[1748882755828,0.49509817,104210.0,104200.0,0.22272824]
[1748882756049,0.52261054,104210.0,104200.0,0.22272824]
[1748882756308,0.53220645,104210.0,104200.0,0.22272833]
[1748882756722,0.49509817,104210.0,104200.0,0.23232461]
[1748882757132,0.50469399,104210.0,104200.0,0.23232461]
[1748882757329,0.45756308,104210.0,104200.0,0.23232461]
[1748882757541,0.4396465,104210.0,104200.0,0.23232461]
[1748882757745,0.43005068,104210.0,104200.0,0.24742461]
[1748882758774,0.44796712,104210.0,104200.0,0.24742461]
[1748882758993,0.43005068,104210.0,104200.0,0.24742461]
[1748882759403,0.4396465,104210.0,104200.0,0.24742461]
[1748882759613,0.44924241,104210.0,104200.0,0.23782833]
[1748882760273,0.44924241,104210.0,104200.0,0.24742461]
[1748882760504,0.69948323,104210.0,104200.0,0.22823196]
[1748882760728,0.50756307,104210.0,104200.0,0.24742479]
[1748882761167,0.52547299,104210.0,104200.0,0.25702107]
[1748882761427,0.49796725,104210.0,104200.0,0.2474247]
[1748882761650,0.43005068,104210.0,104200.0,0.2474247]
[1748882761879,0.4396465,104210.0,104200.0,0.2474247]
[1748882762098,0.44924241,104210.0,104200.0,0.23782842]
[1748882762321,0.4396465,104210.0,104200.0,0.23782842]
[1748882762549,0.42045495,104210.0,104200.0,0.2627247]
[1748882762813,0.43005031,104210.0,104200.0,0.2627247]
[1748882763040,0.43964595,104210.0,104200.0,0.2627247]
[1748882763264,0.45755117,104210.0,104200.0,0.2627247]
[1748882763483,0.42045477,104210.0,104200.0,0.2627247]
[1748882763724,0.47967816,104210.0,104200.0,0.2627247]
[1748882763971,0.49758339,104210.0,104200.0,0.2627247]
[1748882764182,0.41085978,104210.0,104200.0,0.2627247]
[1748882764390,0.44795578,104210.0,104200.0,0.2627247]
[1748882764605,0.4396464,104210.0,104200.0,0.26272489]
[1748882764867,0.63156739,104210.0,104200.0,0.2035354]
[1748882765107,0.63828176,104210.0,104200.0,0.21313205]
[1748882765356,0.69709645,104210.0,104200.0,0.002]
[1748882765577,5.82130973,104210.0,104200.0,0.002]
[1748882765798,5.9198438,104210.0,104200.0,0.002]
[1748882766027,5.90865454,104210.0,104200.0,0.002]
[1748882766255,5.90865454,104210.0,104160.0,0.20156588]
[1748882766256,0.22079181,104170.0,104160.0,0.22366601]
[1748882766538,0.22079181,104170.0,104160.0,0.19201228]
[1748882766762,0.24829103,104170.0,104160.0,0.21121323]
[1748882766992,0.22079246,104170.0,104160.0,0.21121323]
[1748882767223,0.22079246,104170.0,104160.0,0.22081356]
[1748882767452,0.03709806,104170.0,104160.0,0.23641362]
[1748882767685,0.03709748,104170.0,104160.0,0.24601358]
[1748882767921,0.02879786,104170.0,104160.0,0.25551358]
[1748882768608,0.55947437,104180.0,104170.0,0.19199385]
[1748882768842,0.61537167,104180.0,104170.0,0.22079264]
[1748882769070,0.61537165,104180.0,104170.0,0.23699264]
[1748882769289,0.59747145,104180.0,104170.0,0.22079264]
[1748882769544,0.00959941,104170.0,104160.0,0.25241319]
[1748882769759,0.0191991,104170.0,104160.0,0.22751304]
[1748882769976,0.02879833,104170.0,104160.0,0.23711319]
[1748882770192,0.02879768,104170.0,104160.0,0.24671325]
[1748882770424,0.02879777,104170.0,104160.0,0.25631321]
[1748882770967,0.00959895,104170.0,104160.0,0.25711245]
[1748882771192,0.01919836,104170.0,104160.0,0.24751202]
[1748882771838,0.02019836,104170.0,104160.0,0.25251202]
[1748882772452,0.01059904,104170.0,104160.0,0.25251202]
[1748882772664,0.02019817,104170.0,104160.0,0.25251202]
[1748882773079,0.01059904,104170.0,104160.0,0.25251202]
[1748882773290,0.001,104170.0,104160.0,0.25251202]
[1748882773498,0.01059904,104170.0,104160.0,0.25251202]
[1748882773700,0.02019817,104170.0,104160.0,0.25251202]
[1748882774107,0.0297974,104170.0,104160.0,0.25251202]
[1748882774521,0.0297974,104170.0,104160.0,0.25251248]
[1748882775584,0.02019817,104170.0,104160.0,0.25251248]
[1748882775999,0.02979749,104170.0,104160.0,0.25251248]
[1748882776216,0.02019817,104170.0,104160.0,0.25251248]
[1748882776634,0.02019827,104170.0,104160.0,0.25251248]
[1748882776839,0.001,104170.0,104160.0,0.25251248]
[1748882784735,0.01059904,104170.0,104160.0,0.25251248]
[1748882784943,0.01059895,104170.0,104160.0,0.25251248]
[1748882785375,0.001,104170.0,104160.0,0.25251248]
[1748882786236,0.01059886,104170.0,104160.0,0.25251248]
[1748882786442,0.001,104170.0,104160.0,0.25251248]
[1748882789150,0.001,104170.0,104160.0,0.88289444]
[1748882789580,0.001,104170.0,104160.0,0.38042697]
[1748882789802,0.001,104170.0,104160.0,0.34836678]
[1748882791738,0.001,104170.0,104160.0,0.85083425]
[1748882792171,0.001,104170.0,104160.0,0.34836678]
[1748882794637,0.001,104170.0,104160.0,0.25251248]
[1748882802153,0.26670608,104190.0,104170.0,0.22079163]
[1748882802154,0.1319451,104190.0,104170.0,0.22079163]
[1748882802377,0.01919661,104180.0,104170.0,0.22079181]
[1748882802600,0.04389528,104180.0,104170.0,0.22079181]
[1748882803044,0.06039519,104180.0,104170.0,0.22079181]
[1748882803734,0.04389492,104180.0,104170.0,0.22079181]
[1748882803955,0.04389492,104180.0,104170.0,0.22179181]
[1748882804197,0.03429643,104180.0,104170.0,0.22279181]
[1748882804679,0.04389492,104180.0,104170.0,0.22179181]
[1748882804895,0.02619652,104180.0,104170.0,0.22279181]
[1748882805330,0.36619652,104180.0,104170.0,0.22179181]
[1748882805547,0.37219652,104180.0,104170.0,0.22279181]
[1748882807372,0.38179519,104180.0,104170.0,0.22279181]
[1748882807592,0.3817951,104180.0,104170.0,0.22279181]
[1748882808007,0.37219652,104180.0,104170.0,0.22279181]
[1748882808939,0.38179501,104180.0,104170.0,0.22279181]
[1748882809165,0.39139359,104180.0,104170.0,0.22279181]
[1748882810102,0.38179501,104180.0,104170.0,0.22279181]
[1748882811128,0.37219652,104180.0,104170.0,0.22279181]
[1748882812710,0.36259803,104180.0,104170.0,0.22279181]
[1748882812934,0.36259803,104180.0,104170.0,0.23899181]
[1748882812935,0.38179455,104180.0,104170.0,0.23899181]
[1748882813147,0.39139295,104180.0,104170.0,0.23899181]
[1748882814170,0.37219624,104180.0,104170.0,0.23899181]
[1748882814597,0.38179464,104180.0,104170.0,0.23899181]
[1748882815040,0.353,104180.0,104170.0,0.23899181]
[1748882815263,0.353,104180.0,104170.0,0.25519181]
[1748882815938,0.013,104180.0,104170.0,0.25519181]
[1748882816171,0.013,104180.0,104170.0,0.35104611]
[1748882825807,0.013,104180.0,104170.0,1.27047736]
[1748882826031,0.06645561,104210.0,104200.0,0.22072824]
[1748882826247,0.06645561,104210.0,104200.0,0.39126884]
[1748882826476,0.02697409,104210.0,104200.0,0.34808254]
[1748882827138,0.02797409,104210.0,104200.0,0.35408254]
[1748882829151,0.02797409,104210.0,104200.0,0.36008254]
[1748882831676,0.02797409,104210.0,104200.0,0.86255001]
[1748882831894,0.02797409,104210.0,104200.0,0.95506123]
[1748882832324,0.02797409,104210.0,104200.0,0.45259376]
[1748882832552,0.02797409,104210.0,104200.0,0.36008254]
[1748882841907,0.02797409,104210.0,104200.0,0.86255001]
[1748882842534,0.01525908,104210.0,104200.0,0.86255001]
[1748882843175,0.01525908,104210.0,104200.0,0.36008254]
[1748882844279,0.08391226,104230.0,104220.0,0.22068588]
[1748882844495,0.09355431,104230.0,104220.0,0.22068588]
[1748882844703,0.07561606,104230.0,104220.0,0.22068588]
[1748882845361,0.09496427,104230.0,104220.0,0.22168588]
[1748882845576,0.07702254,104230.0,104220.0,0.26789555]
[1748882845767,0.09861597,104230.0,104220.0,0.22268588]
[1748882846233,0.11655503,104230.0,104220.0,0.22268588]
[1748882846478,0.09861597,104230.0,104220.0,0.22268588]
[1748882846935,0.11655548,104230.0,104220.0,0.22268588]
[1748882847145,0.10820958,104230.0,104220.0,0.22268588]
[1748882847360,0.12614898,104230.0,104220.0,0.22268588]
[1748882847552,0.10820949,104230.0,104220.0,0.22268588]
[1748882847774,0.12614903,104230.0,104220.0,0.22268588]
[1748882847970,0.10820949,104230.0,104220.0,0.22268588]
[1748882848214,0.07942921,104230.0,104220.0,0.22268588]
[1748882848426,0.07942921,104230.0,104220.0,0.26909555]
[1748882848427,0.10696219,104230.0,104220.0,0.26909555]
[1748882848633,0.09861606,104230.0,104220.0,0.23838588]
[1748882848856,0.11655584,104230.0,104220.0,0.23838588]
[1748882849068,0.09861606,104230.0,104220.0,0.23838588]
[1748882849991,0.10820976,104230.0,104220.0,0.23838588]
[1748882850198,0.1261495,104230.0,104220.0,0.22268588]
[1748882850421,0.10820967,104230.0,104220.0,0.22268588]
[1748882850891,0.10820967,104230.0,104220.0,0.22943226]
[1748882851330,0.11780337,104230.0,104220.0,0.22268588]
[1748882851776,0.13574229,104230.0,104220.0,0.22268588]
[1748882851991,0.11780337,104230.0,104220.0,0.22943226]
[1748882852198,0.11780337,104230.0,104220.0,0.22268588]
[1748882852609,0.11780337,104230.0,104220.0,0.22943223]
[1748882852610,0.13574327,104230.0,104220.0,0.22943223]
[1748882852819,0.11780337,104230.0,104220.0,0.22943224]
[1748882853039,0.10820967,104230.0,104220.0,0.22268588]
[1748882853259,0.10696238,104230.0,104220.0,0.22268588]
[1748882853486,0.09861606,104230.0,104220.0,0.22268588]
[1748882853707,0.09736917,104230.0,104220.0,0.25408588]
[1748882853920,0.08902254,104230.0,104220.0,0.25408588]
[1748882854579,0.09861606,104230.0,104220.0,0.25408588]
[1748882855032,0.11655564,104230.0,104220.0,0.25408588]
[1748882855258,0.09861606,104230.0,104220.0,0.23778588]
[1748882855509,0.10820976,104230.0,104220.0,0.22268588]
[1748882855766,0.10820967,104230.0,104220.0,0.22268588]
[1748882855998,0.11655689,104230.0,104220.0,0.22268588]
[1748882856230,0.09861606,104230.0,104220.0,0.22268588]
[1748882856459,0.09861606,104230.0,104220.0,0.27941439]
[1748882856460,0.07942921,104230.0,104220.0,0.27941439]
[1748882856697,0.09737131,104230.0,104220.0,0.25448588]
[1748882856938,0.07942921,104230.0,104220.0,0.25448588]
[1748882857167,0.07942921,104230.0,104220.0,0.26123192]
[1748882857392,0.07942921,104230.0,104220.0,0.25448588]
[1748882857620,0.07942921,104230.0,104220.0,0.26123191]
[1748882857781,0.07942921,104230.0,104220.0,0.2612319]
[1748882858015,0.07942921,104230.0,104220.0,0.25448588]
[1748882858609,0.09737127,104230.0,104220.0,0.25448588]
[1748882858814,0.07942921,104230.0,104220.0,0.25448588]
[1748882859020,0.07942921,104230.0,104220.0,0.26123191]
[1748882859313,0.07942921,104230.0,104220.0,0.25448588]
[1748882859496,0.07942921,104230.0,104220.0,0.26123191]
[1748882859686,0.07942921,104230.0,104220.0,0.25448588]
[1748882859891,0.07942921,104230.0,104220.0,0.26123192]
[1748882860092,0.07942921,104230.0,104220.0,0.25448588]
[1748882860296,0.07942921,104230.0,104220.0,0.2612319]
[1748882860438,0.07942921,104230.0,104220.0,0.25448588]
[1748882861052,0.07942921,104230.0,104220.0,0.2612319]
[1748882861260,0.07942921,104230.0,104220.0,0.25448588]
[1748882861895,0.07942921,104230.0,104220.0,0.28829668]
[1748882862110,0.07942921,104230.0,104220.0,0.2950427]
[1748882862321,0.07942921,104230.0,104220.0,0.28829668]
[1748882863234,0.07942921,104230.0,104220.0,0.29504268]
[1748882863686,0.07942921,104230.0,104220.0,0.28829668]
[1748882863908,0.07942921,104230.0,104220.0,0.25448588]
[1748882864791,0.07942921,104230.0,104220.0,0.26123188]
[1748882865248,0.07942921,104230.0,104220.0,0.25448588]
[1748882865475,0.07942921,104230.0,104220.0,0.35034018]
[1748882865712,0.04098663,104230.0,104220.0,0.4428514]
[1748882866162,0.04098663,104230.0,104220.0,0.44959686]
[1748882866373,0.02998663,104230.0,104220.0,0.4418514]
[1748882867038,0.02998663,104230.0,104220.0,0.34934018]
[1748882867703,0.02298663,104230.0,104220.0,0.34834018]
[1748882867923,0.02698663,104230.0,104220.0,0.35508571]
[1748882868167,0.02698663,104230.0,104220.0,0.39348571]
[1748882868380,0.02698663,104230.0,104220.0,0.38674018]
[1748882869042,0.02698663,104230.0,104220.0,0.4792514]
[1748882869472,0.02698663,104230.0,104220.0,0.48599689]
[1748882869704,0.02698663,104230.0,104220.0,0.4792514]
[1748882869962,0.02698663,104230.0,104220.0,0.48599689]
[1748882870176,0.02698663,104230.0,104220.0,0.38674018]
[1748882870391,0.23856733,104250.0,104240.0,0.22064382]
[1748882870613,0.03841664,104250.0,104240.0,0.23023642]
[1748882870825,0.27015641,104250.0,104240.0,0.23023642]
[1748882871054,0.27015641,104250.0,104240.0,0.22064382]
[1748882871308,0.27015641,104250.0,104240.0,0.2273893]
[1748882871519,0.28115641,104250.0,104240.0,0.22164382]
[1748882871741,0.30074873,104250.0,104240.0,0.22264382]
[1748882872196,0.30074873,104250.0,104240.0,0.22938931]
[1748882872435,0.30074873,104250.0,104240.0,0.23898191]
[1748882872653,0.10890221,104250.0,104240.0,0.23223642]
[1748882873092,0.29115687,104250.0,104240.0,0.222644]
[1748882873310,0.09931035,104250.0,104240.0,0.23898217]
[1748882873540,0.11761803,104250.0,104240.0,0.23898217]
[1748882873802,0.10581803,104250.0,104240.0,0.24182929]
[1748882874028,0.0801258,104250.0,104240.0,0.24182929]
[1748882874253,0.08012534,104250.0,104240.0,0.24182929]
[1748882874473,0.08971748,104250.0,104240.0,0.24182929]
[1748882874693,0.09930971,104250.0,104240.0,0.24182929]
[1748882876912,0.08971748,104250.0,104240.0,0.24182929]
[1748882877701,0.09930971,104250.0,104240.0,0.24182929]
[1748882878548,0.08971748,104250.0,104240.0,0.24182929]
[1748882879206,0.29115623,104250.0,104240.0,0.24182929]
[1748882879428,0.30074855,104250.0,104240.0,0.23223669]
[1748882879628,0.29115687,104250.0,104240.0,0.23223669]
[1748882880044,0.09931035,104250.0,104240.0,0.23223669]
[1748882880260,0.29115687,104250.0,104240.0,0.23223669]
[1748882880470,0.0801258,104250.0,104240.0,0.24182929]
[1748882880876,0.28156455,104250.0,104240.0,0.24182929]
[1748882881304,0.08971803,104250.0,104240.0,0.24182929]
[1748882881534,0.08012534,104250.0,104240.0,0.25752929]
[1748882881746,0.08012534,104250.0,104240.0,0.27332929]
[1748882881747,0.06094171,104250.0,104240.0,0.27332929]
[1748882882180,0.02104846,104250.0,104240.0,0.36918359]
[1748882882416,0.02104846,104250.0,104240.0,0.44614737]
[1748882882667,0.02104846,104250.0,104240.0,0.94861484]
[1748882882874,0.01004846,104250.0,104240.0,0.94761484]
[1748882883083,0.01604846,104250.0,104240.0,0.53765859]
[1748882883293,4.846e-05,104250.0,104240.0,0.53665859]
[1748882883505,4.846e-05,104250.0,104240.0,0.45969481]
[1748882883720,0.00404846,104250.0,104240.0,0.47069481]
[1748882884185,0.00404846,104250.0,104240.0,0.37818359]
[1748882884391,4.846e-05,104250.0,104240.0,0.88065106]
[1748882884804,4.846e-05,104250.0,104240.0,0.89065106]
[1748882885891,4.846e-05,104250.0,104240.0,0.92926451]
[1748882887849,4.846e-05,104250.0,104240.0,0.94380536]
[1748882888065,4.846e-05,104250.0,104240.0,1.03631658]
[1748882888486,4.846e-05,104250.0,104240.0,1.37631658]
[1748882888919,0.00302565,104270.0,104260.0,0.25190122]
[1748882889183,0.00351028,104270.0,104260.0,0.34775552]
[1748882889394,0.00351028,104270.0,104260.0,0.44026674]
[1748882890278,0.00351028,104270.0,104260.0,0.44826674]
[1748882890716,0.00351028,104270.0,104260.0,0.45526674]
[1748882893607,0.00351028,104270.0,104260.0,0.95773421]
[1748882894314,0.00351028,104270.0,104260.0,0.45526674]
[1748882895207,0.00351028,104270.0,104260.0,0.36275552]
[1748882896967,0.22409034,104270.0,104260.0,0.015]
[1748882897193,0.2424005,104270.0,104260.0,0.015]
[1748882897448,0.3382548,104270.0,104260.0,0.015]
[1748882898342,0.3382548,104270.0,104260.0,0.008]
[1748882898555,0.20772812,104260.0,104250.0,0.2302144]
[1748882898783,0.21952812,104260.0,104250.0,0.2302144]
[1748882899454,0.01918529,104240.0,104230.0,0.22488333]
[1748882899677,0.03837132,104240.0,104230.0,0.21107064]
[1748882900109,0.01918529,104240.0,104230.0,0.21107064]
[1748882900347,0.00959251,104240.0,104230.0,0.21107064]
[1748882900568,0.01918529,104240.0,104230.0,0.21107064]
[1748882900793,0.23023623,104240.0,104230.0,0.22107119]
[1748882901010,0.03837131,104240.0,104230.0,0.24025832]
[1748882901457,0.23023623,104240.0,104230.0,0.01]
[1748882901689,0.26273195,104240.0,104230.0,0.23207129]
[1748882901922,0.23875094,104240.0,104230.0,0.24166508]
[1748882902577,0.23875094,104240.0,104230.0,0.23066508]
[1748882902791,0.23875094,104240.0,104230.0,0.23966508]
[1748882903000,0.23875094,104240.0,104230.0,0.22966508]
[1748882903390,0.23875094,104240.0,104230.0,0.23866508]
[1748882904493,0.23875094,104240.0,104230.0,0.24825878]
[1748882904946,0.03898115,104240.0,104230.0,0.2578523]
[1748882905168,0.0581669,104240.0,104230.0,0.2578523]
[1748882905392,0.03438437,104250.0,104240.0,0.21105094]
[1748882905626,0.02754409,104250.0,104240.0,0.22064372]
[1748882905835,0.01918326,104250.0,104240.0,0.23023632]
[1748882906044,0.02877521,104250.0,104240.0,0.23023632]
[1748882906650,0.2398061,104250.0,104240.0,0.22864372]
[1748882906887,0.04795958,104250.0,104240.0,0.24782901]
[1748882907324,0.2398061,104250.0,104240.0,0.23823641]
[1748882907740,0.04795958,104250.0,104240.0,0.24782901]
[1748882908407,0.23980666,104250.0,104240.0,0.24523641]
[1748882908626,0.04796014,104250.0,104240.0,0.25482901]
[1748882909279,0.23980666,104250.0,104240.0,0.25482901]
[1748882909750,0.27140846,104250.0,104240.0,0.21645816]
[1748882909964,0.22062321,104250.0,104240.0,0.22605131]
[1748882910180,0.23857759,104250.0,104240.0,0.22605131]
[1748882910383,0.23857684,104250.0,104240.0,0.22605131]
[1748882910804,0.22062321,104250.0,104240.0,0.22605131]
[1748882911645,0.22062321,104250.0,104240.0,0.23564418]
[1748882911833,0.21939206,104250.0,104240.0,0.22605131]
[1748882912108,0.20143884,104250.0,104240.0,0.23564437]
[1748882912541,0.219392,104250.0,104240.0,0.23564437]
[1748882912755,0.20143884,104250.0,104240.0,0.23564437]
[1748882913417,0.19184652,104250.0,104240.0,0.015]
[1748882913634,0.35995376,104250.0,104240.0,0.015]
[1748882914076,5.70292676,104250.0,104240.0,0.015]
[1748882914292,5.72087828,104250.0,104240.0,0.015]
[1748882914523,5.70292676,104250.0,104240.0,0.015]
[1748882914779,5.70292676,104250.0,104240.0,0.007]
[1748882915218,0.03837518,104230.0,104220.0,0.28467987]
[1748882915435,0.22066554,104230.0,104220.0,0.23989682]
[1748882915654,0.21107156,104230.0,104220.0,0.24949181]
[1748882915869,0.21918333,104230.0,104220.0,0.0384]
[1748882916302,0.2371322,104230.0,104220.0,0.0384]
[1748882916528,0.21966766,104230.0,104220.0,0.0474]
[1748882916719,0.23761658,104230.0,104220.0,0.0384]
[1748882916957,0.20786766,104230.0,104220.0,0.0474]
[1748882917170,0.20786766,104230.0,104220.0,0.0544]
[1748882917382,0.20786766,104230.0,104220.0,0.0454]
[1748882917599,0.20786766,104230.0,104220.0,0.0534]
[1748882918235,0.23668066,104230.0,104220.0,0.0534]
[1748882919112,0.25462971,104230.0,104220.0,0.0534]
[1748882919330,0.2546297,104230.0,104220.0,0.0534]
[1748882919542,0.28251182,104230.0,104220.0,0.0534]
[1748882919789,0.33253496,104230.0,104220.0,0.0534]
[1748882920024,0.34433496,104230.0,104220.0,0.0534]
[1748882920690,0.31552196,104230.0,104220.0,0.0534]
[1748882921607,0.12363863,104230.0,104220.0,0.0534]
[1748882921820,0.31552196,104230.0,104220.0,0.0534]
[1748882922508,0.33347042,104230.0,104220.0,0.0534]
[1748882922732,0.31552196,104230.0,104220.0,0.0534]
[1748882923424,0.33347093,104230.0,104220.0,0.0534]
[1748882923674,0.28822196,104230.0,104220.0,0.2832669]
[1748882923894,0.28822196,104230.0,104220.0,0.25489673]
[1748882924333,0.30617111,104230.0,104220.0,0.27089673]
[1748882924556,0.00048433,104230.0,104220.0,0.28049163]
[1748882924781,0.0388596,104230.0,104220.0,0.29968096]
[1748882925076,0.23074293,104230.0,104220.0,0.32547549]
[1748882925311,0.2211495,104230.0,104220.0,0.29669163]
[1748882925532,0.22950523,104230.0,104220.0,0.29669163]
[1748882925777,0.2115558,104230.0,104220.0,0.29669163]
[1748882925989,0.2295051,104230.0,104220.0,0.29669163]
[1748882926173,0.22950515,104230.0,104220.0,0.29669163]
[1748882926411,0.2115558,104230.0,104220.0,0.29669163]
[1748882926622,0.22950515,104230.0,104220.0,0.29669163]
[1748882926806,0.2115558,104230.0,104220.0,0.29669163]
[1748882927042,0.19236766,104230.0,104220.0,0.28709673]
[1748882927227,0.19236766,104230.0,104220.0,0.26130174]
[1748882927494,0.19236766,104230.0,104220.0,0.0694]
[1748882927721,0.19236766,104230.0,104220.0,0.0534]
[1748882927975,0.30322196,104230.0,104220.0,0.0534]
[1748882928188,0.31502196,104230.0,104220.0,0.0534]
[1748882928646,5.67253581,104230.0,104220.0,0.0534]
[1748882928873,5.76504703,104230.0,104220.0,0.04513001]
[1748882929105,0.21113214,104200.0,104190.0,0.224157]
[1748882929334,0.02879271,104190.0,104180.0,0.25286385]
[1748882929553,0.01919449,104190.0,104180.0,0.26246197]
[1748882929993,0.01919449,104190.0,104180.0,0.28385217]
[1748882930214,0.34959619,104200.0,104190.0,0.22705204]
[1748882930435,0.21111079,104210.0,104200.0,0.22703196]
[1748882930649,0.66615663,104210.0,104200.0,0.25282833]
[1748882930861,0.67575263,104210.0,104200.0,0.25282833]
[1748882931083,0.656562,104210.0,104200.0,0.24323214]
[1748882931568,0.64696637,104210.0,104200.0,0.24323214]
[1748882932265,0.64696637,104210.0,104200.0,0.2528287]
[1748882932494,0.64696637,104210.0,104200.0,0.2578287]
[1748882932956,0.63737046,104210.0,104200.0,0.24823214]
[1748882933187,0.67700205,104210.0,104200.0,0.24823214]
[1748882933421,0.66740605,104210.0,104200.0,0.2416354]
[1748882933655,0.66740605,104210.0,104200.0,0.25123214]
[1748882934613,0.72559179,104210.0,104200.0,0.2416354]
[1748882934803,0.72559179,104210.0,104200.0,0.25123214]
[1748882935065,0.66740605,104210.0,104200.0,0.25123214]
[1748882935310,0.66740605,104210.0,104200.0,0.0401]
[1748882935768,0.66740605,104210.0,104200.0,0.04969692]
[1748882935972,0.66740605,104210.0,104200.0,0.24163549]
[1748882936467,0.66740605,104210.0,104200.0,0.0401]
[1748882936686,0.75622188,104210.0,104200.0,0.24163549]
[1748882938277,0.75622188,104210.0,104200.0,0.0401]
[1748882938933,0.75622188,104210.0,104200.0,0.04969692]
[1748882939145,0.75622188,104210.0,104200.0,0.24163549]
[1748882939375,0.66740605,104210.0,104200.0,0.24163549]
[1748882939597,0.66740605,104210.0,104200.0,0.0401]
[1748882942756,0.66740605,104210.0,104200.0,0.24163549]
[1748882942967,0.66740605,104210.0,104200.0,0.25123223]
[1748882943181,0.66740605,104210.0,104200.0,0.24163549]
[1748882943395,0.68659778,104210.0,104200.0,0.25123223]
[1748882943616,0.68659778,104210.0,104200.0,0.25123232]
[1748882943839,0.6412173,104210.0,104200.0,0.26082906]
[1748882944281,0.6412173,104210.0,104200.0,0.25123232]
[1748882944702,0.6412173,104210.0,104200.0,0.26082906]
[1748882945353,0.6412173,104210.0,104200.0,0.27042562]
[1748882945781,0.63162157,104210.0,104200.0,0.26082906]
[1748882945961,0.63162157,104210.0,104200.0,0.27042571]
[1748882946204,0.65081275,104210.0,104200.0,0.28002208]
[1748882946439,0.36303709,104210.0,104200.0,0.32722427]
[1748882946700,0.57414879,104210.0,104200.0,0.26082879]
[1748882946943,0.56455435,104210.0,104200.0,0.26082879]
[1748882947194,0.56455435,104210.0,104200.0,0.27042535]
[1748882947428,0.56455435,104210.0,104200.0,0.28002181]
[1748882947674,0.71865421,104210.0,104200.0,0.008]
[1748882947888,5.74862721,104210.0,104200.0,0.008]
[1748882948105,5.76650495,104210.0,104200.0,0.008]
[1748882948324,5.76650458,104210.0,104200.0,0.008]
[1748882948538,5.74862721,104210.0,104200.0,0.008]
[1748882948759,5.76650437,104210.0,104200.0,0.008]
[1748882948974,5.74862721,104210.0,104200.0,0.008]
[1748882949196,5.76650415,104210.0,104200.0,0.008]
[1748882949419,5.76316806,104210.0,104200.0,0.008]
[1748882949641,0.20153531,104200.0,104190.0,4.846e-05]
[1748882949864,5.41626369,104200.0,104190.0,4.846e-05]
[1748882950317,5.43413798,104200.0,104190.0,4.846e-05]
[1748882950578,5.41626369,104200.0,104190.0,4.846e-05]
[1748882950826,5.53375245,104200.0,104190.0,4.846e-05]
[1748882951045,0.20159298,104170.0,104160.0,0.23220502]
[1748882951276,0.01919854,104170.0,104160.0,0.25145442]
[1748882951518,0.01919799,104170.0,104160.0,0.27065481]
[1748882951773,0.03839681,104170.0,104160.0,0.28025477]
[1748882952205,0.2303914,104170.0,104160.0,0.27064817]
[1748882952419,0.2303914,104170.0,104160.0,0.26146207]
[1748882952640,0.00959886,104170.0,104160.0,0.321501]
[1748882952884,0.03839636,104170.0,104160.0,0.34028419]
[1748882953316,0.03839636,104170.0,104160.0,0.34428419]
[1748882953528,0.04799586,104170.0,104160.0,0.34428419]
[1748882953747,0.04799586,104170.0,104160.0,0.27204515]
[1748882953748,0.23039085,104170.0,104160.0,0.27204515]
[1748882953965,0.0479966,104170.0,104160.0,0.28164521]
[1748882954181,0.0479966,104170.0,104160.0,0.29124517]
[1748882954401,0.3262458,104170.0,104160.0,0.25326168]
[1748882954637,0.12465235,104170.0,104160.0,0.27246188]
[1748882954848,0.32624589,104170.0,104160.0,0.27246207]
[1748882955067,0.01919818,104170.0,104160.0,0.28206148]
[1748882955286,0.00959895,104170.0,104160.0,0.32946397]
[1748882955512,0.03839709,104170.0,104160.0,0.27506148]
[1748882955781,0.23999063,104170.0,104160.0,0.26146152]
[1748882956013,0.30704744,104170.0,104160.0,0.03804846]
[1748882956233,0.30704744,104170.0,104160.0,0.21456074]
[1748882956456,0.33617276,104170.0,104160.0,0.22416135]
[1748882956674,0.38898925,104170.0,104160.0,0.22416135]
[1748882957116,0.38898925,104170.0,104160.0,0.24966178]
[1748882957551,0.33617276,104170.0,104160.0,0.25926211]
[1748882958204,0.32657316,104170.0,104160.0,0.25926211]
[1748882958427,0.02912532,104170.0,104160.0,0.25926211]
[1748882958641,0.56077098,104180.0,104170.0,0.23229354]
[1748882958857,0.65662528,104180.0,104170.0,0.24189314]
[1748882959070,0.64702697,104180.0,104170.0,0.24189314]
[1748882959545,0.64702697,104180.0,104170.0,0.25149264]
[1748882959760,0.64702697,104180.0,104170.0,0.24189314]
[1748882959971,0.66496482,104180.0,104170.0,0.24189314]
[1748882960187,0.65502697,104180.0,104170.0,0.24289314]
[1748882960397,0.66202697,104180.0,104170.0,0.23429354]
[1748882960641,0.66202697,104180.0,104170.0,0.24389314]
[1748882960858,0.66202697,104180.0,104170.0,0.26309205]
[1748882961076,0.69098872,104180.0,104170.0,0.26309205]
[1748882961514,0.48941436,104180.0,104170.0,0.27269072]
[1748882961724,0.71018488,104180.0,104170.0,0.27269091]
[1748882962163,0.70058685,104180.0,104170.0,0.27269091]
[1748882963309,0.76842527,104180.0,104170.0,0.23429345]
[1748882963510,0.76842527,104180.0,104170.0,0.24389286]
[1748882963731,0.69098854,104180.0,104170.0,0.24389286]
[1748882963915,0.69098854,104180.0,104170.0,0.25349209]
[1748882964334,0.49901257,104180.0,104170.0,0.25349209]
[1748882964531,0.70058657,104180.0,104170.0,0.25349209]
[1748882964743,0.70058657,104180.0,104170.0,0.23429345]
[1748882964946,0.70058657,104180.0,104170.0,0.24389295]
[1748882965466,0.70058657,104180.0,104170.0,0.23429345]
[1748882965667,0.69098845,104180.0,104170.0,0.23429345]
[1748882967293,0.78216923,104180.0,104170.0,0.23429354]
[1748882967517,0.77257083,104180.0,104170.0,0.0327]
[1748882967745,0.77257083,104180.0,104170.0,0.0176]
[1748882967960,0.77257083,104180.0,104170.0,0.002]
[1748882969809,0.77257083,104180.0,104170.0,0.002]
[1748882970025,5.79008468,104180.0,104170.0,0.002]
[1748882970238,5.79508505,104180.0,104170.0,0.002]
[1748882972251,0.54159335,104170.0,104160.0,0.03164846]
[1748882972466,0.63744765,104170.0,104160.0,0.03164846]
[1748882973804,0.63744765,104170.0,104160.0,0.03964846]